bitfinex/quotes_ETHUSD_20250908
["timestamp","ask_amount","ask_price","bid_price","bid_amount"]
[1757357623510,18.42017799,4327.0,4326.9,5.649]
[1757357623681,17.98387799,4327.0,4326.9,5.649]
[1757357624597,19.21387799,4327.0,4326.9,5.649]
[1757357626127,17.81990797,4327.0,4326.9,8.3532]
[1757357626266,20.13097799,4327.0,4326.9,8.3532]
[1757357626969,17.81990797,4327.0,4326.9,8.3532]
[1757357627168,14.76,4327.0,4326.9,8.3532]
[1757357627466,15.99,4327.0,4326.9,8.7949]
[1757357628260,16.782,4327.0,4326.9,8.7949]
[1757357628811,18.012,4327.0,4326.9,8.7949]
[1757357630011,20.32307002,4327.0,4326.9,8.7949]
[1757357630302,21.55307002,4327.0,4326.9,8.7949]
[1757357631209,21.55307002,4327.0,4326.9,8.3532]
[1757357631572,22.78307002,4327.0,4326.9,8.3532]
[1757357632992,24.01307002,4327.0,4326.9,8.3532]
[1757357634486,25.24307002,4327.0,4326.9,8.3532]
[1757357635513,25.24307002,4327.0,4326.9,5.649]
[1757357635683,25.85351934,4327.0,4326.9,5.649]
[1757357636005,27.39641934,4327.0,4326.9,5.649]
[1757357636414,27.08351934,4327.0,4326.9,5.649]
[1757357637193,28.31351934,4327.0,4326.9,5.649]
[1757357638798,29.54351934,4327.0,4326.9,5.649]
[1757357639003,29.54351934,4327.0,4326.9,5.9417]
[1757357640234,30.77351934,4327.0,4326.9,5.9417]
[1757357640544,30.77351934,4327.0,4326.9,8.3532]
[1757357640746,27.852,4327.0,4326.9,8.7949]
[1757357641145,30.16307002,4327.0,4326.9,5.9417]
[1757357641370,30.44917002,4327.0,4326.9,5.64]
[1757357641676,32.14477002,4327.0,4326.9,5.64]
[1757357641874,34.41267799,4327.0,4326.9,5.64]
[1757357642149,33.94707799,4327.0,4326.9,5.64]
[1757357642304,31.34990797,4327.0,4326.9,5.64]
[1757357642504,29.082,4327.0,4326.9,8.2181]
[1757357642943,32.62307002,4327.0,4326.9,5.9301]
[1757357643446,30.312,4327.0,4326.9,5.9301]
[1757357643624,32.62307002,4327.0,4326.9,5.9301]
[1757357644219,30.312,4327.0,4326.9,5.9301]
[1757357644420,33.85307002,4327.0,4326.9,5.9301]
[1757357646351,35.08307002,4327.0,4326.9,5.64]
[1757357647516,31.98,4327.0,4326.9,8.6806]
[1757357647749,33.3252,4327.0,4326.9,8.6806]
[1757357649493,34.5552,4327.0,4326.9,8.6806]
[1757357650932,35.7852,4327.0,4326.9,8.6806]
[1757357651716,35.67,4327.0,4326.9,13.99172343]
[1757357652359,36.9,4327.0,4326.9,13.99172343]
[1757357653467,36.9,4327.0,4326.9,11.6806]
[1757357653639,38.13,4327.0,4326.9,11.6806]
[1757357654039,38.13,4327.0,4326.9,13.99172343]
[1757357655063,39.36,4327.0,4326.9,13.99172343]
[1757357656447,40.59,4327.0,4326.9,14.10692343]
[1757357657663,41.82,4327.0,4326.9,14.10692343]
[1757357659367,43.05,4327.0,4326.9,14.10692343]
[1757357659568,43.05,4327.0,4326.9,11.81892343]
[1757357659732,43.05,4327.0,4326.9,14.10692343]
[1757357660129,43.05,4327.0,4326.9,44.10692343]
[1757357660963,44.28,4327.0,4326.9,44.10692343]
[1757357662165,45.51,4327.0,4326.9,44.10692343]
[1757357663371,46.74,4327.0,4326.9,44.10692343]
[1757357663927,44.74413076,4327.0,4326.9,44.10692343]
[1757357664766,45.97413076,4327.0,4326.9,44.10692343]
[1757357666178,47.20413076,4327.0,4326.9,44.10692343]
[1757357667393,48.43413076,4327.0,4326.9,43.64442343]
[1757357669090,49.66413076,4327.0,4326.9,43.64442343]
[1757357669457,49.66413076,4327.0,4326.9,41.35642343]
[1757357670252,49.66413076,4327.0,4326.9,43.64442343]
[1757357670452,50.89413076,4327.0,4326.9,43.64442343]
[1757357671353,50.89413076,4327.0,4326.9,44.10772343]
[1757357671752,52.12413076,4327.0,4326.9,44.10772343]
[1757357672890,52.12413076,4327.0,4326.9,43.64442343]
[1757357673057,53.35413076,4327.0,4326.9,43.64442343]
[1757357673255,53.35413076,4327.0,4326.9,41.35642343]
[1757357674464,54.58413076,4327.0,4326.9,41.35642343]
[1757357676305,55.81413076,4327.0,4326.9,41.35642343]
[1757357677081,56.12423076,4327.0,4326.9,41.06632343]
[1757357677266,56.57633076,4327.0,4326.9,41.06632343]
[1757357677692,57.80633076,4327.0,4326.9,41.06632343]
[1757357678003,57.35423076,4327.0,4326.9,41.05832343]
[1757357678205,57.04413076,4327.0,4326.9,41.05832343]
[1757357678410,57.04413076,4327.0,4326.9,41.35002343]
[1757357678606,57.04413076,4327.0,4326.9,41.05832343]
[1757357678812,60.10933076,4327.0,4326.9,4.773]
[1757357679023,64.39923873,4327.0,4326.9,1.773]
[1757357679189,64.39923873,4327.0,4326.9,8.632]
[1757357679375,64.39923873,4327.0,4326.9,5.632]
[1757357679735,64.39923873,4327.0,4326.9,8.632]
[1757357680502,65.62923873,4327.0,4326.9,8.632]
[1757357681821,66.85923873,4327.0,4326.9,8.632]
[1757357682316,66.86023873,4327.0,4326.9,8.632]
[1757357683180,68.09023873,4327.0,4326.9,8.632]
[1757357684824,69.32023873,4327.0,4326.9,8.632]
[1757357685419,69.30623873,4327.0,4326.9,8.632]
[1757357685718,67.03833076,4327.0,4326.9,8.632]
[1757357686216,68.26833076,4327.0,4326.9,8.632]
[1757357687491,69.49833076,4327.0,4326.9,8.632]
[1757357688934,70.72833076,4327.0,4326.9,8.632]
[1757357690839,71.95833076,4327.0,4326.9,8.632]
[1757357691240,69.65533076,4327.0,4326.9,8.632]
[1757357691812,71.95833076,4327.0,4326.9,8.632]
[1757357691997,73.18833076,4327.0,4326.9,8.632]
[1757357693205,74.93101193,4327.0,4326.9,8.632]
[1757357693700,76.16101193,4327.0,4326.9,8.632]
[1757357694317,74.41833076,4327.0,4326.9,8.632]
[1757357695428,72.58313076,4327.0,4326.9,8.632]
[1757357695628,72.58313076,4327.0,4326.9,8.9237]
[1757357696223,72.58313076,4327.0,4326.9,8.632]
[1757357696852,72.58313076,4327.0,4326.9,13.64122343]
[1757357696853,64.98816285,4327.0,4326.9,13.64122343]
[1757357697015,64.98816285,4327.0,4326.9,14.36233108]
[1757357697332,64.98816285,4327.0,4326.9,14.10452343]
[1757357698656,66.21816285,4327.0,4326.9,14.10452343]
[1757357699825,66.21816285,4327.0,4326.9,13.64122343]
[1757357699826,67.44816285,4327.0,4326.9,13.64122343]
[1757357700026,67.44816285,4327.0,4326.9,11.23482343]
[1757357700956,67.44816285,4327.0,4326.9,13.64122343]
[1757357701135,68.67816285,4327.0,4326.9,13.64122343]
[1757357701330,68.67816285,4327.0,4326.9,14.08252343]
[1757357701725,68.67816285,4327.0,4326.9,13.64122343]
[1757357702448,69.90816285,4327.0,4326.9,11.23482343]
[1757357702730,69.90816285,4327.0,4326.9,7.08412343]
[1757357703064,69.90816285,4327.0,4326.9,11.24802343]
[1757357703592,69.90816285,4327.0,4326.9,13.52222343]
[1757357703722,71.13816285,4327.0,4326.9,14.21535782]
[1757357703918,71.13816285,4327.0,4326.9,11.94115782]
[1757357704161,71.45016285,4327.0,4326.9,11.63625782]
[1757357704367,71.90796285,4327.0,4326.9,10.94312343]
[1757357705289,73.13796285,4327.0,4326.9,10.94312343]
[1757357705846,72.68016285,4327.0,4326.9,10.94312343]
[1757357706682,73.91016285,4327.0,4326.9,10.94312343]
[1757357707984,75.14016285,4327.0,4326.9,10.94312343]
[1757357708478,74.82816285,4327.0,4326.9,10.94312343]
[1757357708779,74.82816285,4327.0,4326.9,11.24802343]
[1757357708978,74.82816285,4327.0,4326.9,16.79002343]
[1757357709369,76.05816285,4327.0,4326.9,16.79002343]
[1757357710070,76.05816285,4327.0,4326.9,16.48512343]
[1757357710804,77.28816285,4327.0,4326.9,16.48512343]
[1757357711902,77.28816285,4327.0,4326.9,16.79002343]
[1757357712306,78.51816285,4327.0,4326.9,16.79002343]
[1757357712998,78.51816285,4327.0,4326.9,19.76333108]
[1757357713449,78.51816285,4327.0,4326.9,15.64652343]
[1757357713607,79.74816285,4327.0,4326.9,19.06322343]
[1757357713924,79.74816285,4327.0,4326.9,19.75629537]
[1757357715228,80.97816285,4327.0,4326.9,20.19759537]
[1757357715606,0.001,4327.5,4327.2,2.31092688]
[1757357715953,0.001,4327.5,4327.4,5.4260564]
[1757357716089,0.001,4327.6,4327.5,5.310803]
[1757357716291,0.001,4327.6,4327.5,11.884303]
[1757357716496,0.001,4328.5,4328.4,2.31032252]
[1757357716693,0.001,4328.5,4328.4,10.94132252]
[1757357718238,3.2372,4328.5,4328.4,8.631]
[1757357718544,4.33574,4328.5,4328.4,8.631]
[1757357719215,5.56574,4328.5,4328.4,8.631]
[1757357720625,6.79574,4328.5,4328.4,8.631]
[1757357720924,9.10600914,4328.5,4328.4,4.773]
[1757357721132,9.10600914,4328.5,4328.4,8.631]
[1757357722316,10.33600914,4328.5,4328.4,4.773]
[1757357722516,10.33600914,4328.5,4328.4,8.631]
[1757357723719,11.56600914,4328.5,4328.4,8.631]
[1757357724431,11.56600914,4328.5,4328.4,1.773]
[1757357724630,11.56600914,4328.5,4328.4,5.631]
[1757357724792,11.56600914,4328.5,4328.4,8.631]
[1757357724992,12.79600914,4328.5,4328.4,8.631]
[1757357726529,14.02600914,4328.5,4328.4,8.631]
[1757357728042,15.25600914,4328.5,4328.4,8.631]
[1757357728244,15.25600914,4328.5,4328.4,4.773]
[1757357728542,15.25600914,4328.5,4328.4,8.631]
[1757357729319,16.48600914,4328.5,4328.4,8.631]
[1757357730736,17.71600914,4328.5,4328.4,8.631]
[1757357732472,17.69980914,4328.5,4328.4,8.631]
[1757357732643,18.92980914,4328.5,4328.4,8.631]
[1757357734074,20.15980914,4328.5,4328.4,8.631]
[1757357734828,17.84954,4328.5,4328.4,8.631]
[1757357735029,13.531,4328.5,4328.4,11.1988]
[1757357735328,14.761,4328.5,4328.4,11.1988]
[1757357735530,15.06,4328.5,4328.4,8.631]
[1757357735768,18.6481,4328.5,4328.4,4.773]
[1757357736069,16.2936,4328.5,4328.4,8.631]
[1757357736662,23.05669708,4328.5,4328.4,1.773]
[1757357736873,24.28669708,4328.5,4328.4,5.631]
[1757357738180,25.51669708,4328.5,4328.4,5.631]
[1757357739740,26.74669708,4328.5,4328.4,5.631]
[1757357741160,27.97669708,4328.5,4328.4,5.631]
[1757357742650,29.20669708,4328.5,4328.4,5.631]
[1757357744212,30.43669708,4328.5,4328.4,5.631]
[1757357745505,31.66669708,4328.5,4328.4,5.631]
[1757357746805,32.89669708,4328.5,4328.4,5.631]
[1757357748079,30.10059708,4328.5,4328.4,5.631]
[1757357748283,31.33059708,4328.5,4328.4,5.631]
[1757357748615,31.03159708,4328.5,4328.4,5.631]
[1757357748779,31.77219708,4328.5,4328.4,5.631]
[1757357749690,33.00219708,4328.5,4328.4,5.631]
[1757357750195,27.853,4328.5,4328.4,8.9286]
[1757357750399,27.061,4328.5,4328.4,11.6457]
[1757357751112,28.291,4328.5,4328.4,11.6457]
[1757357751700,28.4062,4328.5,4328.4,11.6457]
[1757357752539,29.6362,4328.5,4328.4,11.6457]
[1757357753510,29.521,4328.5,4328.4,13.95602252]
[1757357753940,30.751,4328.5,4328.4,13.95602252]
[1757357755210,31.981,4328.5,4328.4,13.95602252]
[1757357756650,33.211,4328.5,4328.4,11.1988]
[1757357756852,33.211,4328.5,4328.4,13.50912252]
[1757357757029,33.211,4328.5,4328.4,13.95602252]
[1757357757959,34.441,4328.5,4328.4,13.95602252]
[1757357758155,34.441,4328.5,4328.4,11.6457]
[1757357758868,34.441,4328.5,4328.4,13.95602252]
[1757357759443,35.671,4328.5,4328.4,13.95602252]
[1757357760770,36.901,4328.5,4328.4,13.95602252]
[1757357762147,38.131,4328.5,4328.4,13.95602252]
[1757357763476,39.361,4328.5,4328.4,13.95602252]
[1757357764776,40.591,4328.5,4328.4,13.95602252]
[1757357765970,40.591,4328.5,4328.4,14.64889437]
[1757357766174,41.821,4328.5,4328.4,14.64889437]
[1757357767572,43.051,4328.5,4328.4,14.64889437]
[1757357768695,43.051,4328.5,4328.4,14.20199437]
[1757357768997,44.281,4328.5,4328.4,10.94132252]
[1757357769169,44.281,4328.5,4328.4,7.08332252]
[1757357769351,44.281,4328.5,4328.4,10.93932252]
[1757357769555,44.281,4328.5,4328.4,11.24242252]
[1757357770364,45.511,4328.5,4328.4,11.24242252]
[1757357771299,45.511,4328.5,4328.4,14.03782252]
[1757357771596,45.511,4328.5,4328.4,14.73072477]
[1757357771793,46.741,4328.5,4328.4,14.73072477]
[1757357773294,47.971,4328.5,4328.4,14.73072477]
[1757357774074,47.971,4328.5,4328.4,14.29162477]
[1757357774270,47.971,4328.5,4328.4,11.93532477]
[1757357774681,49.201,4328.5,4328.4,11.93532477]
[1757357774886,49.201,4328.5,4328.4,14.29162477]
[1757357776260,50.431,4328.5,4328.4,14.29162477]
[1757357777473,50.431,4328.5,4328.4,14.84592477]
[1757357777667,51.661,4328.5,4328.4,14.84592477]
[1757357779168,52.891,4328.5,4328.4,14.84592477]
[1757357780599,54.121,4328.5,4328.4,14.40682477]
[1757357780802,54.121,4328.5,4328.4,14.40582477]
[1757357781005,54.121,4328.5,4328.4,12.04952477]
[1757357782075,55.351,4328.5,4328.4,12.04952477]
[1757357783487,56.581,4328.5,4328.4,12.04952477]
[1757357785001,57.811,4328.5,4328.4,12.04952477]
[1757357786390,59.041,4328.5,4328.4,12.04952477]
[1757357787174,59.041,4328.5,4328.4,14.40582477]
[1757357787914,60.271,4328.5,4328.4,14.40582477]
[1757357789287,53.46803209,4328.5,4328.4,14.84492477]
[1757357789492,53.46803209,4328.5,4328.4,15.13689909]
[1757357790192,53.46803209,4328.5,4328.4,14.40582477]
[1757357790393,47.06520733,4328.5,4328.4,14.40582477]
[1757357790632,47.63998623,4328.5,4328.4,14.40582477]
[1757357791901,48.86998623,4328.5,4328.4,14.40582477]
[1757357792105,48.86998623,4328.5,4328.4,12.04952477]
[1757357792307,48.86998623,4328.5,4328.4,11.74642477]
[1757357793355,50.09998623,4328.5,4328.4,7.89142477]
[1757357793517,50.40628623,4328.5,4328.4,11.74642477]
[1757357793713,50.85198623,4328.5,4328.4,11.74642477]
[1757357794717,51.32998623,4328.5,4328.4,11.74642477]
[1757357795334,51.32998623,4328.5,4328.4,17.28542477]
[1757357796057,52.55998623,4328.5,4328.4,17.28542477]
[1757357796254,52.55998623,4328.5,4328.4,17.57162477]
[1757357797415,53.78998623,4328.5,4328.4,17.57162477]
[1757357798115,53.78998623,4328.5,4328.4,17.28542477]
[1757357798753,55.01998623,4328.5,4328.4,17.28542477]
[1757357800120,56.24998623,4328.5,4328.4,17.28542477]
[1757357801359,56.55728623,4328.5,4328.4,17.28542477]
[1757357801564,58.23298623,4328.5,4328.4,17.28542477]
[1757357802259,57.78728623,4328.5,4328.4,17.28542477]
[1757357802619,58.23298623,4328.5,4328.4,17.28542477]
[1757357802851,57.48098623,4328.5,4328.4,17.28542477]
[1757357803015,58.71098623,4328.5,4328.4,17.28542477]
[1757357804321,59.94098623,4328.5,4328.4,17.28542477]
[1757357804560,60.69298623,4328.5,4328.4,17.28542477]
[1757357805839,61.92298623,4328.5,4328.4,17.28542477]
[1757357806556,61.47728623,4328.5,4328.4,17.28542477]
[1757357807127,62.70728623,4328.5,4328.4,17.28542477]
[1757357807857,62.40098623,4328.5,4328.4,17.28542477]
[1757357808446,63.63098623,4328.5,4328.4,17.28542477]
[1757357809758,64.86098623,4328.5,4328.4,17.28542477]
[1757357811250,66.09098623,4328.5,4328.4,17.28542477]
[1757357812772,68.07298623,4328.5,4328.4,13.43042477]
[1757357812939,68.07298623,4328.5,4328.4,17.28442477]
[1757357813736,68.07298623,4328.5,4328.4,13.43042477]
[1757357813973,68.07298623,4328.5,4328.4,10.312]
[1757357813974,74.0197942,4328.5,4328.4,10.312]
[1757357814175,74.0197942,4328.5,4328.4,16.47532252]
[1757357815339,75.2497942,4328.5,4328.4,16.47532252]
[1757357816061,72.98188623,4328.5,4328.4,16.47532252]
[1757357817452,74.21188623,4328.5,4328.4,16.47532252]
[1757357818922,75.44188623,4328.5,4328.4,16.47532252]
[1757357819373,75.44188623,4328.5,4328.4,14.165]
[1757357819778,75.44188623,4328.5,4328.4,16.47532252]
[1757357819979,76.67188623,4328.5,4328.4,16.47532252]
[1757357821611,77.90188623,4328.5,4328.4,16.47532252]
[1757357821962,75.45298623,4328.5,4328.4,16.47532252]
[1757357822405,75.00728623,4328.5,4328.4,16.47532252]
[1757357823009,76.23728623,4328.5,4328.4,16.47532252]
[1757357823602,76.68248623,4328.5,4328.4,16.47532252]
[1757357823799,76.23728623,4328.5,4328.4,16.47532252]
[1757357824007,75.93098623,4328.5,4328.4,16.47532252]
[1757357824211,77.16098623,4328.5,4328.4,16.47532252]
[1757357824874,77.16098623,4328.5,4328.4,16.76762252]
[1757357825074,77.16098623,4328.5,4328.4,18.88202252]
[1757357825307,77.16098623,4328.5,4328.4,16.47532252]
[1757357825603,70.35801832,4328.5,4328.4,19.28952252]
[1757357825780,70.35801832,4328.5,4328.4,19.98237677]
[1757357826909,71.58801832,4328.5,4328.4,19.98237677]
[1757357828515,72.81801832,4328.5,4328.4,19.98237677]
[1757357829726,74.04801832,4328.5,4328.4,19.98237677]
[1757357831014,74.04801832,4328.5,4328.4,17.57567677]
[1757357831175,75.27801832,4328.5,4328.4,17.57567677]
[1757357831971,78.46781832,4328.5,4328.4,13.43037677]
[1757357832178,78.46781832,4328.5,4328.4,17.28337677]
[1757357832821,79.69781832,4328.5,4328.4,17.28337677]
[1757357833029,79.69781832,4328.5,4328.4,13.43037677]
[1757357833214,79.69781832,4328.5,4328.4,17.28337677]
[1757357833577,79.69781832,4328.5,4328.4,16.47532252]
[1757357834319,78.48301832,4328.5,4328.4,16.47532252]
[1757357834909,77.73801832,4328.5,4328.4,16.76762252]
[1757357835220,77.73801832,4328.5,4328.4,17.18646351]
[1757357835415,77.73801832,4328.5,4328.4,16.59052252]
[1757357835639,78.96801832,4328.5,4328.4,17.57569757]
[1757357836216,78.96801832,4328.5,4328.4,17.28339757]
[1757357837260,80.19801832,4328.5,4328.4,17.28339757]
[1757357837846,80.19801832,4328.5,4328.4,17.57569757]
[1757357838395,80.19801832,4328.5,4328.4,17.28339757]
[1757357838598,81.42801832,4328.5,4328.4,17.28339757]
[1757357840010,82.65801832,4328.5,4328.4,17.28339757]
[1757357841034,83.40301832,4328.5,4328.4,17.28339757]
[1757357841414,84.63301832,4328.5,4328.4,17.28339757]
[1757357841616,83.88801832,4328.5,4328.4,17.57469757]
[1757357841799,83.88801832,4328.5,4328.4,19.98139757]
[1757357842295,83.88801832,4328.5,4328.4,17.57469757]
[1757357842491,78.42560014,4328.5,4328.4,20.28503856]
[1757357842711,79.65560014,4328.5,4328.4,20.28503856]
[1757357842998,79.65560014,4328.5,4328.4,17.87833856]
[1757357843414,74.19318196,4328.5,4328.4,17.87833856]
[1757357844352,71.15141128,4328.5,4328.4,17.87833856]
[1757357844658,71.87784746,4328.5,4328.4,17.87833856]
[1757357845958,73.10784746,4328.5,4328.4,17.87833856]
[1757357847479,74.33784746,4328.5,4328.4,17.87833856]
[1757357847976,74.33784746,4328.5,4328.4,20.28503856]
[1757357848139,74.33784746,4328.5,4328.4,20.72713856]
[1757357848471,74.33784746,4328.5,4328.4,20.28503856]
[1757357848643,74.33784746,4328.5,4328.4,17.87833856]
[1757357848943,75.56784746,4328.5,4328.4,17.87833856]
[1757357850191,76.79784746,4328.5,4328.4,17.57469757]
[1757357850943,76.79784746,4328.5,4328.4,19.98139757]
[1757357851450,76.79784746,4328.5,4328.4,20.71613856]
[1757357851451,0.52451771,4328.5,4328.4,20.71613856]
[1757357851663,0.52451771,4328.5,4328.4,20.28503856]
[1757357852288,0.52451771,4328.5,4328.4,17.87833856]
[1757357852645,0.52451771,4328.5,4328.4,17.57469757]
[1757357852989,1.75451771,4328.5,4328.4,17.57469757]
[1757357854286,2.98451771,4328.5,4328.4,17.57469757]
[1757357855487,4.21451771,4328.5,4328.4,17.57469757]
[1757357856452,4.21451771,4328.5,4328.4,17.28239757]
[1757357856962,5.44451771,4328.5,4328.4,17.28239757]
[1757357857262,5.44451771,4328.5,4328.4,17.56819757]
[1757357858399,6.67451771,4328.5,4328.4,17.56819757]
[1757357858556,1.21209953,4328.5,4328.4,20.47953856]
[1757357858762,0.02,4328.9,4328.7,2.3101624]
[1757357859068,0.69276625,4331.5,4328.7,2.3101624]
[1757357859069,136.7140366,4329.9,4329.2,2.30989559]
[1757357859268,136.7140366,4329.9,4329.3,11.21864223]
[1757357859708,1.231,4329.4,4329.3,11.21864223]
[1757357860006,1.231,4329.4,4329.3,11.33472076]
[1757357860194,0.4886,4329.8,4329.4,5.30978888]
[1757357860556,3.2179,4329.5,4329.4,5.30978888]
[1757357860914,5.4717,4329.5,4329.4,2.30978888]
[1757357861063,5.4717,4329.5,4329.4,9.16078888]
[1757357861395,6.7017,4329.5,4329.4,7.54370707]
[1757357861599,7.37437,4329.5,4329.4,9.85349595]
[1757357861895,7.37437,4329.5,4329.4,7.54370707]
[1757357862582,7.37437,4329.5,4329.4,6.851]
[1757357862778,8.60437,4329.5,4329.4,0.17671437]
[1757357862965,8.60437,4329.5,4329.4,3.851]
[1757357863172,7.9317,4329.5,4329.4,6.16078888]
[1757357863354,7.9317,4329.5,4329.4,6.851]
[1757357863558,7.9317,4329.5,4329.4,9.16078888]
[1757357864160,9.1617,4329.5,4329.4,14.86980244]
[1757357865254,6.9079,4329.5,4329.4,14.86980244]
[1757357865789,8.1379,4329.5,4329.4,14.86980244]
[1757357866192,10.3917,4329.5,4329.4,14.86980244]
[1757357867257,11.6217,4329.5,4329.4,14.86980244]
[1757357867658,8.61,4329.5,4329.4,14.86980244]
[1757357867859,9.3679,4329.5,4329.4,14.86980244]
[1757357868501,9.3689,4329.5,4329.4,14.86980244]
[1757357868800,10.5989,4329.5,4329.4,14.86980244]
[1757357869823,10.5989,4329.5,4329.4,12.56001356]
[1757357870025,14.0827,4329.5,4329.4,12.55901356]
[1757357870329,14.0827,4329.5,4329.4,14.86880244]
[1757357870628,14.0827,4329.5,4329.4,12.55901356]
[1757357870784,15.49347,4329.5,4329.4,12.55901356]
[1757357871340,16.72347,4329.5,4329.4,12.55901356]
[1757357872015,16.72347,4329.5,4329.4,14.86880244]
[1757357872215,15.3127,4329.5,4329.4,14.86880244]
[1757357872538,13.0589,4329.5,4329.4,14.86880244]
[1757357872706,14.2889,4329.5,4329.4,14.86880244]
[1757357873453,13.8253,4329.5,4329.4,8.70901356]
[1757357873661,16.5427,4329.5,4329.4,12.55901356]
[1757357873955,21.30120553,4329.5,4329.4,9.389]
[1757357874113,22.53120553,4329.5,4329.4,9.389]
[1757357874418,22.53120553,4329.5,4329.4,12.389]
[1757357874618,22.53120553,4329.5,4329.4,9.389]
[1757357875041,22.53120553,4329.5,4329.4,12.389]
[1757357875414,10.52858182,4329.5,4329.4,15.15648975]
[1757357875612,10.52858182,4329.5,4329.4,18.50136787]
[1757357875811,10.52858182,4329.5,4329.4,18.87002304]
[1757357876257,10.52858182,4329.5,4329.4,19.10112304]
[1757357876419,5.06616364,4329.5,4329.4,19.10112304]
[1757357876945,6.29616364,4329.5,4329.4,19.10112304]
[1757357877321,4.39655287,4329.5,4329.4,19.10112304]
[1757357877571,4.39655287,4329.5,4329.4,18.81011924]
[1757357878148,5.62655287,4329.5,4329.4,18.81011924]
[1757357879457,6.85655287,4329.5,4329.4,18.81011924]
[1757357880819,8.08655287,4329.5,4329.4,18.81011924]
[1757357881554,1e-08,4329.5,4329.4,18.81011924]
[1757357882325,1.23000001,4329.5,4329.4,18.81011924]
[1757357883570,1.23000001,4329.5,4329.4,18.92531924]
[1757357883762,2.46000001,4329.5,4329.4,18.92531924]
[1757357885228,3.69000001,4329.5,4329.4,18.92531924]
[1757357885654,3.69100001,4329.5,4329.4,14.63721924]
[1757357885972,3.69100001,4329.5,4329.4,18.49221924]
[1757357887270,4.92100001,4329.5,4329.4,18.49221924]
[1757357888546,6.15100001,4329.5,4329.4,18.49221924]
[1757357888746,6.15100001,4329.5,4329.4,15.98051924]
[1757357888962,6.15100001,4329.5,4329.4,15.68251924]
[1757357889134,6.15100001,4329.5,4329.4,11.82851924]
[1757357889332,6.15100001,4329.5,4329.4,15.68151924]
[1757357890068,7.38100001,4329.5,4329.4,15.68151924]
[1757357890433,7.38100001,4329.5,4329.4,15.97951924]
[1757357891060,5.61870139,4329.5,4329.4,18.64231924]
[1757357891259,3.41585179,4329.5,4329.4,18.64231924]
[1757357892395,3.41585179,4329.5,4329.4,16.21061924]
[1757357892691,4.64585179,4329.5,4329.4,15.91261924]
[1757357892986,4.64585179,4329.5,4329.4,16.21061924]
[1757357893196,4.64585179,4329.5,4329.4,18.64231924]
[1757357893684,4.64585179,4329.5,4329.4,16.21061924]
[1757357893890,5.87585179,4329.5,4329.4,16.21061924]
[1757357894048,6.17405179,4329.5,4329.4,11.82851924]
[1757357894255,5.87585179,4329.5,4329.4,15.68051924]
[1757357894878,5.87585179,4329.5,4329.4,15.97851924]
[1757357895256,7.10585179,4329.5,4329.4,15.97851924]
[1757357896780,7.10585179,4329.5,4329.4,16.20961924]
[1757357896986,8.33585179,4329.5,4329.4,16.20961924]
[1757357898289,9.56585179,4329.5,4329.4,16.20961924]
[1757357899406,9.56585179,4329.5,4329.4,18.64131924]
[1757357899557,10.79585179,4329.5,4329.4,18.64131924]
[1757357899950,0.025,4329.8,4329.4,18.64131924]
[1757357899951,136.2504366,4329.9,4329.7,2.30962884]
[1757357900285,136.7203366,4329.9,4329.8,9.1595755]
[1757357900463,137.0185366,4329.9,4329.8,5.93251835]
[1757357900794,136.2504366,4329.9,4329.8,9.79551835]
[1757357901011,137.4804366,4329.9,4329.8,10.02661835]
[1757357901300,137.7786366,4329.9,4329.8,10.02661835]
[1757357901475,137.7786366,4329.9,4329.8,16.67161835]
[1757357901674,138.2485366,4329.9,4329.8,16.67161835]
[1757357902013,138.2485366,4329.9,4329.8,12.57751835]
[1757357902218,140.6112366,4329.9,4329.8,16.44051835]
[1757357902376,141.8412366,4329.9,4329.8,16.44051835]
[1757357902755,144.10914457,4329.9,4329.8,9.03994285]
[1757357902954,144.10914457,4329.9,4329.8,12.90894285]
[1757357903260,144.10914457,4329.9,4329.8,15.90894285]
[1757357903769,145.33914457,4329.9,4329.8,15.90894285]
[1757357905098,146.56914457,4329.9,4329.8,15.90894285]
[1757357905774,146.56914457,4329.9,4329.8,5.39494285]
[1757357905962,148.87866672,4329.9,4329.8,9.26394285]
[1757357906297,146.56914457,4329.9,4329.8,9.26394285]
[1757357906499,147.79914457,4329.9,4329.8,9.26394285]
[1757357907557,150.90066672,4329.9,4329.8,9.26394285]
[1757357907763,152.13066672,4329.9,4329.8,9.26394285]
[1757357907963,149.82114457,4329.9,4329.8,9.26394285]
[1757357908801,152.13066672,4329.9,4329.8,9.26394285]
[1757357908992,149.82114457,4329.9,4329.8,9.26394285]
[1757357909162,151.05114457,4329.9,4329.8,9.26394285]
[1757357910706,152.28114457,4329.9,4329.8,9.26394285]
[1757357911019,151.48914457,4329.9,4329.8,9.26394285]
[1757357911204,149.2212366,4329.9,4329.8,9.26394285]
[1757357911506,149.3364366,4329.9,4329.8,9.26394285]
[1757357912066,150.5664366,4329.9,4329.8,9.26394285]
[1757357913376,151.7964366,4329.9,4329.8,9.26394285]
[1757357914689,153.0264366,4329.9,4329.8,9.26394285]
[1757357916294,154.2564366,4329.9,4329.8,9.26394285]
[1757357916925,151.0104366,4329.9,4329.8,11.86611835]
[1757357917230,159.54666672,4329.9,4329.8,4.772]
[1757357917404,159.54666672,4329.9,4329.8,8.639]
[1757357917810,160.77666672,4329.9,4329.8,8.639]
[1757357919313,160.77666672,4329.9,4329.8,1.772]
[1757357919314,162.00666672,4329.9,4329.8,1.772]
[1757357919499,162.00666672,4329.9,4329.8,5.647]
[1757357919705,162.00666672,4329.9,4329.8,8.647]
[1757357920735,163.23666672,4329.9,4329.8,8.649]
[1757357922752,164.46666672,4329.9,4329.8,8.649]
[1757357922908,159.0972366,4329.9,4329.8,8.649]
[1757357923315,161.40675875,4329.9,4329.8,8.647]
[1757357923515,162.63675875,4329.9,4329.8,8.647]
[1757357924048,160.3272366,4329.9,4329.8,8.647]
[1757357924428,162.63675875,4329.9,4329.8,8.647]
[1757357924837,163.86675875,4329.9,4329.8,8.647]
[1757357925329,166.13466672,4329.9,4329.8,4.774]
[1757357925528,166.13466672,4329.9,4329.8,8.648]
[1757357926153,167.36466672,4329.9,4329.8,8.648]
[1757357926726,167.36466672,4329.9,4329.8,4.774]
[1757357926913,167.36466672,4329.9,4329.8,8.646]
[1757357927515,168.59466672,4329.9,4329.8,8.646]
[1757357928938,169.82466672,4329.9,4329.8,8.646]